[Event "XI Paracin Festival 2018"]
[Site "Paracin"]
[Date "2018.07.12"]
[Round "8"]
[White "Radovanovic, Nikola"]
[Black "Kathmale, Sameer"]
[Result "1-0"]
[ECO "E73"]
[WhiteElo "2425"]
[BlackElo "2323"]
[Annotator "NA"]
[PlyCount "83"]
[EventDate "2018.07.06"]
[EventType "swiss"]
[EventCountry "SRB"]
[SourceTitle "playchess.com"]
[Source "ChessBase"]
[SourceQuality "1"]
[TimeControl "5400+30"]

1. d4 {[%emt 0:01:08]} Nf6 {[%emt 0:00:00]} 2. c4 {[%emt 0:00:08]} g6 {[%emt 0:00:00]} 3. Nc3 {[%emt 0:00:25]} Bg7 {[%emt 0:01:14]} 4. e4 {[%emt 0:00:07]} d6 {[%emt 0:00:04]} 5. Be2 {[%emt 0:00:10]} O-O {[%emt 0:00:23]} 6. Be3 {[%emt 0:00:15]} c5 {[%emt 0:05:14]} 7. d5 {[%emt 0:04:02]} e6 {[%emt 0:01:43]} 8. Nf3 {[%emt 0:00:23]} exd5 {[%emt 0:05:05]} 9. cxd5 {[%emt 0:01:26]} b5 {[%emt 0:09:15]} 10. e5 {[%emt 0:00:47]} Ng4 {[%emt 0:04:54]} 11. Bg5 {[%emt 0:00:43]} Qa5 {[%emt 0:00:52]} 12. exd6 {[%emt 0:06:13]} b4 {[%emt 0:04:06]} 13. Ne4 {[%emt 0:08:24]} f6 {[%emt 0:02:47]} 14. Bf4 {[%emt 0:11:57]} g5 {[%emt 0:07:07]} 15. Bg3 {[%emt 0:09:59]} h5 {[%emt 0:14:54]} 16. Nfd2 {[%emt 0:11:37]} f5 {[%emt 0:12:18]} 17. Nxg5 {[%emt 0:02:25]} Bxb2 {[%emt 0:00:12]} 18. O-O {[%emt 0:04:15]} f4 {[%emt 0:03:42]} 19. Qc2 {[%emt 0:06:24]} Bf5 {[%emt 0:02:36]} 20. Qxb2 {[%emt 0:00:51]} fxg3 {[%emt 0:00:02]} 21. hxg3 {[%emt 0:01:24]} Nd7 {[%emt 0:01:01]} 22. Ne6 {[%emt 0:03:21]} Rf7 {[%emt 0:01:07]} 23. Nc4 {[%emt 0:00:39]} Qa4 {[%emt 0:00:25]} 24. Qd2 {[%emt 0:03:17]} Qc2 {[%emt 0:02:03]} 25. Qg5+ {[%emt 0:05:09]} Kh8 {[%emt 0:05:30]} 26. Bxg4 {[%emt 0:00:38]} Bxg4 {[%emt 0:01:29]} 27. Ne5 {[%emt 0:01:07]} Nxe5 {[%emt 0:00:31]} 28. Qxe5+ {[%emt 0:00:06]} Kg8 {[%emt 0:00:17]} 29. Qg5+ {[%emt 0:01:54]} Kh8 {[%emt 0:00:59]} 30. f3 {[%emt 0:00:52]} Bf5 {[%emt 0:00:45]} 31. Rac1 {[%emt 0:01:14]} Qxa2 {[%emt 0:00:44]} 32. d7 {[%emt 0:00:39]} Qxd5 {[%emt 0:01:56]} 33. d8=Q+ {[%emt 0:00:50]} Rxd8 {[%emt 0:00:02]} 34. Nxd8 {[%emt 0:00:23]} Qd4+ {[%emt 0:02:21]} 35. Kh2 {[%emt 0:03:51]} Rf8 {[%emt 0:00:28]} 36. Rfd1 {[%emt 0:00:52]} Qf6 {[%emt 0:00:36]} 37. Qxf6+ {[%emt 0:01:11]} Rxf6 {[%emt 0:00:02]} 38. Rxc5 {[%emt 0:00:14]} b3 {[%emt 0:00:19]} 39. Rd2 {[%emt 0:00:41]} Rf8 {[%emt 0:00:41]} 40. Nc6 {[%emt 0:00:35]} Bc2 {[%emt 0:00:42]} 41. Rdxc2 {[%emt 0:00:12]} bxc2 {[%emt 0:00:07]} 42. Rxc2 {[%emt 0:00:03]} 1-0

[Event "XI Paracin Festival 2018"]
[Site "Paracin"]
[Date "2018.07.12"]
[Round "8"]
[White "Brankovic, Dejan"]
[Black "Uzumcu, Ahmet Utku"]
[Result "1-0"]
[ECO "B94"]
[WhiteElo "2377"]
[BlackElo "2261"]
[Annotator "NA"]
[PlyCount "55"]
[EventDate "2018.07.06"]
[EventType "swiss"]
[EventCountry "SRB"]
[SourceTitle "playchess.com"]
[Source "ChessBase"]
[SourceQuality "1"]
[TimeControl "5400+30"]

1. e4 {[%emt 0:00:00]} c5 {[%emt 0:00:00]} 2. Nf3 {[%emt 0:00:00]} d6 {[%emt 0:00:00]} 3. d4 {[%emt 0:00:05]} cxd4 {[%emt 0:00:00]} 4. Nxd4 {[%emt 0:00:04]} Nf6 {[%emt 0:00:08]} 5. Nc3 {[%emt 0:00:07]} a6 {[%emt 0:00:09]} 6. Bg5 {[%emt 0:02:15]} Nbd7 {[%emt 0:01:14]} 7. Bc4 {[%emt 0:02:12]} Qb6 {[%emt 0:01:22]} 8. O-O {[%emt 0:03:42]} Qxb2 {[%emt 0:11:00]} 9. Nd5 {[%emt 0:00:32]} Nxd5 {[%emt 0:06:38]} 10. Rb1 {[%emt 0:04:02]} Qc3 {[%emt 0:03:13]} 11. Bxd5 {[%emt 0:00:07]} Qc7 {[%emt 0:06:02]} 12. f4 {[%emt 0:02:13]} e6 {[%emt 0:12:06]} 13. Re1 {[%emt 0:02:29]} Rb8 {[%emt 0:10:35]} 14. Kh1 {[%emt 0:23:02]} Nb6 {[%emt 0:12:39]} 15. Bh4 {[%emt 0:24:20]} Qc5 {[%emt 0:07:01]} 16. Bb3 {[%emt 0:10:02]} Qc7 {[%emt 0:06:23]} 17. a4 {[%emt 0:09:11]} Be7 {[%emt 0:03:47]} 18. Bxe7 {[%emt 0:00:30]} Qxe7 {[%emt 0:00:25]} 19. Nf5 {[%emt 0:01:06]} Qd8 {[%emt 0:03:18]} 20. Nxd6+ {[%emt 0:02:09]} Kf8 {[%emt 0:00:13]} 21. f5 {[%emt 0:01:30]} Qe7 {[%emt 0:01:44]} 22. fxe6 {[%emt 0:00:54]} fxe6 {[%emt 0:00:33]} 23. Rf1+ {[%emt 0:01:42]} Kg8 {[%emt 0:00:02]} 24. Nf5 {[%emt 0:01:08]} Qc7 {[%emt 0:00:41]} 25. a5 {[%emt 0:02:01]} Na8 {[%emt 0:00:09]} 26. Nh6+ {[%emt 0:02:09]} gxh6 {[%emt 0:00:17]} 27. Qg4+ {[%emt 0:00:02]} Qg7 {[%emt 0:00:09]} 28. Bxe6+ {[%emt 0:00:03]} 1-0

[Event "XI Paracin Festival 2018"]
[Site "Paracin"]
[Date "2018.07.12"]
[Round "8"]
[White "Martic, Ivan"]
[Black "Cvetkovic, Nemanja"]
[Result "1-0"]
[ECO "B70"]
[WhiteElo "2375"]
[BlackElo "2278"]
[Annotator "NA"]
[PlyCount "73"]
[EventDate "2018.07.06"]
[EventType "swiss"]
[EventCountry "SRB"]
[SourceTitle "playchess.com"]
[Source "ChessBase"]
[SourceQuality "1"]
[TimeControl "5400+30"]

1. e4 {[%emt 0:00:00]} c5 {[%emt 0:00:00]} 2. Nf3 {[%emt 0:00:00]} g6 {[%emt 0:00:00]} 3. d4 {[%emt 0:00:32]} cxd4 {[%emt 0:00:19]} 4. Nxd4 {[%emt 0:00:18]} Nf6 {[%emt 0:02:01]} 5. Nc3 {[%emt 0:00:43]} d6 {[%emt 0:01:26]} 6. Be2 {[%emt 0:00:23]} Bg7 {[%emt 0:00:24]} 7. O-O {[%emt 0:00:07]} O-O {[%emt 0:01:51]} 8. Bg5 {[%emt 0:02:10]} Nc6 {[%emt 0:04:06]} 9. Nb3 {[%emt 0:00:10]} Be6 {[%emt 0:05:54]} 10. Re1 {[%emt 0:00:22]} Nd7 {[%emt 0:05:10]} 11. Rb1 {[%emt 0:10:30]} Rc8 {[%emt 0:10:58]} 12. Nd5 {[%emt 0:07:52]} Re8 {[%emt 0:05:21]} 13. c3 {[%emt 0:07:03]} Nce5 {[%emt 0:06:11]} 14. Bf1 {[%emt 0:07:33]} Nb6 {[%emt 0:03:10]} 15. h3 {[%emt 0:02:06]} Nxd5 {[%emt 0:03:20]} 16. exd5 {[%emt 0:00:08]} Bf5 {[%emt 0:02:30]} 17. Ra1 {[%emt 0:02:09]} Qb6 {[%emt 0:09:15]} 18. Be3 {[%emt 0:02:12]} Qc7 {[%emt 0:00:44]} 19. Nd4 {[%emt 0:05:22]} Bd7 {[%emt 0:00:01]} 20. Nb5 {[%emt 0:02:10]} Bxb5 {[%emt 0:04:34]} 21. Bxb5 {[%emt 0:00:06]} Red8 {[%emt 0:01:07]} 22. Bd4 {[%emt 0:05:39]} a6 {[%emt 0:03:59]} 23. Bf1 {[%emt 0:00:35]} Re8 {[%emt 0:02:25]} 24. a4 {[%emt 0:14:07]} Nc4 {[%emt 0:02:48]} 25. Bxg7 {[%emt 0:02:35]} Kxg7 {[%emt 0:00:02]} 26. Re4 {[%emt 0:01:18]} Ne5 {[%emt 0:03:25]} 27. Qd4 {[%emt 0:05:49]} g5 {[%emt 0:03:52]} 28. h4 {[%emt 0:02:57]} f5 {[%emt 0:02:58]} 29. Re3 {[%emt 0:00:50]} f4 {[%emt 0:01:22]} 30. Re4 {[%emt 0:00:56]} h6 {[%emt 0:00:18]} 31. Rae1 {[%emt 0:01:04]} Qc5 {[%emt 0:02:09]} 32. Qd1 {[%emt 0:00:16]} Rf8 {[%emt 0:08:26]} 33. hxg5 {[%emt 0:03:31]} hxg5 {[%emt 0:00:01]} 34. Rxe5 {[%emt 0:00:38]} dxe5 {[%emt 0:00:07]} 35. Rxe5 {[%emt 0:00:41]} Rc6 {[%emt 0:04:53]} 36. Qh5 {[%emt 0:01:48]} Rh6 {[%emt 0:01:53]} 37. Rxg5+ {[%emt 0:00:20] Rhh8} 1-0

[Event "XI Paracin Festival 2018"]
[Site "Paracin"]
[Date "2018.07.12"]
[Round "8"]
[White "Harvey, Marcus R"]
[Black "Jocev, Milan"]
[Result "1-0"]
[ECO "A05"]
[WhiteElo "2362"]
[BlackElo "2256"]
[Annotator "NA"]
[PlyCount "131"]
[EventDate "2018.07.06"]
[EventType "swiss"]
[EventCountry "SRB"]
[SourceTitle "playchess.com"]
[Source "ChessBase"]
[SourceQuality "1"]
[TimeControl "5400+30"]

1. Nf3 {[%emt 0:00:55]} Nf6 {[%emt 0:00:00]} 2. b3 {[%emt 0:00:20]} g6 {[%emt 0:00:10]} 3. Bb2 {[%emt 0:00:07]} Bg7 {[%emt 0:00:21]} 4. e3 {[%emt 0:00:12]} d6 {[%emt 0:01:35]} 5. d4 {[%emt 0:00:08]} O-O {[%emt 0:00:30]} 6. Be2 {[%emt 0:00:15]} c5 {[%emt 0:00:29]} 7. O-O {[%emt 0:00:14]} Nc6 {[%emt 0:01:05]} 8. d5 {[%emt 0:00:26]} Nb4 {[%emt 0:00:59]} 9. c4 {[%emt 0:00:05]} e6 {[%emt 0:01:10]} 10. a3 {[%emt 0:00:18]} Na6 {[%emt 0:00:06]} 11. dxe6 {[%emt 0:03:07]} Bxe6 {[%emt 0:03:03]} 12. Ng5 {[%emt 0:00:07]} Bd7 {[%emt 0:02:14]} 13. Bf3 {[%emt 0:02:15]} Bc6 {[%emt 0:01:13]} 14. Nc3 {[%emt 0:02:36]} Nc7 {[%emt 0:02:31]} 15. Qe2 {[%emt 0:01:05]} Qe7 {[%emt 0:01:39]} 16. Rfd1 {[%emt 0:01:56]} Rad8 {[%emt 0:05:18]} 17. b4 {[%emt 0:00:50]} Nd7 {[%emt 0:08:19]} 18. b5 {[%emt 0:02:55]} Bxf3 {[%emt 0:02:42]} 19. Nxf3 {[%emt 0:00:48]} Nf6 {[%emt 0:00:39]} 20. Rac1 {[%emt 0:16:59]} d5 {[%emt 0:05:01]} 21. cxd5 {[%emt 0:00:39]} Nfxd5 {[%emt 0:00:59]} 22. Nxd5 {[%emt 0:00:05]} Nxd5 {[%emt 0:00:17]} 23. Bxg7 {[%emt 0:00:36]} Kxg7 {[%emt 0:00:07]} 24. Qb2+ {[%emt 0:00:24]} Kg8 {[%emt 0:02:41]} 25. h4 {[%emt 0:00:55]} h5 {[%emt 0:06:19]} 26. Qe5 {[%emt 0:00:43]} Qxe5 {[%emt 0:00:42]} 27. Nxe5 {[%emt 0:00:06]} Rfe8 {[%emt 0:00:39]} 28. Nc4 {[%emt 0:02:10]} b6 {[%emt 0:03:09]} 29. f3 {[%emt 0:00:32]} f6 {[%emt 0:03:56]} 30. Kf2 {[%emt 0:00:15]} g5 {[%emt 0:02:09]} 31. hxg5 {[%emt 0:00:17]} fxg5 {[%emt 0:00:05]} 32. a4 {[%emt 0:01:33]} Nb4 {[%emt 0:03:23]} 33. Ke2 {[%emt 0:08:35]} Nd5 {[%emt 0:04:22]} 34. Kf2 {[%emt 0:02:01]} Nb4 {[%emt 0:00:14]} 35. Ra1 {[%emt 0:01:59]} h4 {[%emt 0:02:12]} 36. Nd6 {[%emt 0:02:06]} Re6 {[%emt 0:03:25]} 37. Ne4 {[%emt 0:03:13]} Nd3+ {[%emt 0:04:37]} 38. Ke2 {[%emt 0:01:15]} c4 {[%emt 0:00:15]} 39. Nxg5 {[%emt 0:06:56]} Red6 {[%emt 0:01:39]} 40. Ne4 {[%emt 0:00:58]} Rg6 {[%emt 0:03:05]} 41. Rg1 {[%emt 0:00:32]} Kh8 {[%emt 0:01:03]} 42. a5 {[%emt 0:01:54]} Rdg8 {[%emt 0:01:36]} 43. axb6 {[%emt 0:01:10]} Rxb6 {[%emt 0:01:37]} 44. Rxa7 {[%emt 0:02:14]} Rxb5 {[%emt 0:00:43]} 45. f4 {[%emt 0:09:04]} Rg7 {[%emt 0:07:32]} 46. Ra8+ {[%emt 0:03:21]} Rg8 {[%emt 0:00:57]} 47. Rxg8+ {[%emt 0:01:43]} Kxg8 {[%emt 0:00:04]} 48. Rd1 {[%emt 0:00:54]} Rb2+ {[%emt 0:00:38]} 49. Rd2 {[%emt 0:00:14]} Rb1 {[%emt 0:00:10]} 50. Kf3 {[%emt 0:02:18]} Rf1+ {[%emt 0:00:55]} 51. Kg4 {[%emt 0:01:56]} Re1 {[%emt 0:00:14]} 52. Nd6 {[%emt 0:01:35]} Rg1 {[%emt 0:02:59]} 53. Nxc4 {[%emt 0:01:22]} Ne1 {[%emt 0:00:06]} 54. Kxh4 {[%emt 0:00:42]} Rxg2 {[%emt 0:01:29]} 55. Rxg2+ {[%emt 0:00:14]} Nxg2+ {[%emt 0:00:05]} 56. Kg5 {[%emt 0:00:25]} Kf7 {[%emt 0:00:11]} 57. e4 {[%emt 0:00:10]} Ne1 {[%emt 0:00:19]} 58. f5 {[%emt 0:00:09]} Nd3 {[%emt 0:00:26]} 59. e5 {[%emt 0:00:13]} Nc5 {[%emt 0:01:14]} 60. Kf4 {[%emt 0:00:18]} Ke7 {[%emt 0:00:14]} 61. Ke3 {[%emt 0:00:19]} Nb3 {[%emt 0:00:39]} 62. Ke4 {[%emt 0:00:07]} Nc5+ {[%emt 0:00:21]} 63. Kd4 {[%emt 0:00:06]} Na6 {[%emt 0:00:20]} 64. Nb6 {[%emt 0:00:27]} Kd8 {[%emt 0:04:38]} 65. Nd5 {[%emt 0:00:55]} Nb8 {[%emt 0:00:40]} 66. e6 {[%emt 0:00:10]} 1-0

[Event "XI Paracin Festival 2018"]
[Site "Paracin"]
[Date "2018.07.12"]
[Round "8"]
[White "Radovic, Luka"]
[Black "Vujacic, Borivoje"]
[Result "1/2-1/2"]
[ECO "A09"]
[WhiteElo "2344"]
[BlackElo "2213"]
[Annotator "NA"]
[PlyCount "134"]
[EventDate "2018.07.06"]
[EventType "swiss"]
[EventCountry "SRB"]
[SourceTitle "playchess.com"]
[Source "ChessBase"]
[SourceQuality "1"]
[TimeControl "5400+30"]

1. Nf3 {[%emt 0:00:00]} d5 {[%emt 0:00:00]} 2. c4 {[%emt 0:01:26]} dxc4 {[%emt 0:00:18]} 3. Qa4+ {[%emt 0:06:21]} Nc6 {[%emt 0:00:14]} 4. g3 {[%emt 0:07:54]} g6 {[%emt 0:08:50]} 5. Bg2 {[%emt 0:01:33]} Bg7 {[%emt 0:00:18]} 6. Qxc4 {[%emt 0:00:34]} e5 {[%emt 0:00:51]} 7. Nc3 {[%emt 0:08:03]} Nge7 {[%emt 0:00:15]} 8. d3 {[%emt 0:00:45]} O-O {[%emt 0:04:42]} 9. O-O {[%emt 0:01:58]} h6 {[%emt 0:05:44]} 10. Bd2 {[%emt 0:06:05]} Be6 {[%emt 0:02:09]} 11. Qa4 {[%emt 0:00:38]} Nd4 {[%emt 0:02:52]} 12. Rfc1 {[%emt 0:10:26]} c6 {[%emt 0:00:29]} 13. Qd1 {[%emt 0:07:59]} Re8 {[%emt 0:05:27]} 14. Ne4 {[%emt 0:04:58]} Bd5 {[%emt 0:05:10]} 15. Bc3 {[%emt 0:05:27]} b6 {[%emt 0:03:02]} 16. b4 {[%emt 0:03:58]} Qd7 {[%emt 0:02:10]} 17. Ned2 {[%emt 0:02:42]} Be6 {[%emt 0:05:49]} 18. Nc4 {[%emt 0:03:21]} Bxc4 {[%emt 0:21:26]} 19. dxc4 {[%emt 0:00:50]} Rad8 {[%emt 0:00:22]} 20. Nd2 {[%emt 0:05:02]} f5 {[%emt 0:01:28]} 21. e3 {[%emt 0:01:28]} Ne6 {[%emt 0:00:20]} 22. Qc2 {[%emt 0:03:33]} c5 {[%emt 0:02:11]} 23. Nb3 {[%emt 0:01:34]} cxb4 {[%emt 0:00:47]} 24. Bxb4 {[%emt 0:00:03]} e4 {[%emt 0:00:30]} 25. Rd1 {[%emt 0:02:43]} Qc7 {[%emt 0:00:29]} 26. Rac1 {[%emt 0:01:16]} Nc6 {[%emt 0:00:29]} 27. Ba3 {[%emt 0:00:46]} Ne5 {[%emt 0:04:52]} 28. Bf1 {[%emt 0:00:33]} Rxd1 {[%emt 0:01:28]} 29. Rxd1 {[%emt 0:00:38]} Nf3+ {[%emt 0:00:16]} 30. Kh1 {[%emt 0:00:56]} Rd8 {[%emt 0:00:10]} 31. c5 {[%emt 0:01:12]} Kh7 {[%emt 0:01:08]} 32. Be2 {[%emt 0:02:33]} Rxd1+ {[%emt 0:00:57]} 33. Qxd1 {[%emt 0:01:15]} Nxc5 {[%emt 0:00:51]} 34. Qd5 {[%emt 0:06:33]} Nxb3 {[%emt 0:01:00]} 35. Bc4 {[%emt 0:00:17]} Qc8 {[%emt 0:00:47]} 36. Bxb3 {[%emt 0:00:08]} h5 {[%emt 0:00:58]} 37. Kg2 {[%emt 0:00:37]} a6 {[%emt 0:03:02]} 38. h4 {[%emt 0:00:17]} b5 {[%emt 0:00:25]} 39. Bd6 {[%emt 0:01:06]} Qe8 {[%emt 0:02:34]} 40. Qb7 {[%emt 0:00:45]} a5 {[%emt 0:00:42]} 41. Bd5 {[%emt 0:01:04]} b4 {[%emt 0:02:31]} 42. Be7 {[%emt 0:00:40]} Ne5 {[%emt 0:01:39]} 43. Bc5 {[%emt 0:00:47]} Qd7 {[%emt 0:02:11]} 44. Qa8 {[%emt 0:00:27]} Nf7 {[%emt 0:02:54]} 45. Bb3 {[%emt 0:00:10]} Qc7 {[%emt 0:00:33]} 46. Qd5 {[%emt 0:00:25]} Nh6 {[%emt 0:00:22]} 47. Bc4 {[%emt 0:00:42]} Qe5 {[%emt 0:01:03]} 48. Qc6 {[%emt 0:00:55]} Qb2 {[%emt 0:01:11]} 49. Qb5 {[%emt 0:00:34]} Ng4 {[%emt 0:00:15]} 50. Be2 {[%emt 0:00:07]} Qxa2 {[%emt 0:00:36]} 51. Bxg4 {[%emt 0:00:04]} fxg4 {[%emt 0:00:57]} 52. Qb7 {[%emt 0:00:39]} Qe2 {[%emt 0:00:45]} 53. Bd4 {[%emt 0:00:48]} Qf3+ {[%emt 0:00:09]} 54. Kg1 {[%emt 0:00:01]} Qf8 {[%emt 0:00:21]} 55. Qa7 {[%emt 0:00:51]} b3 {[%emt 0:01:06]} 56. Bc5 {[%emt 0:01:00]} Qg8 {[%emt 0:00:57]} 57. Ba3 {[%emt 0:00:32]} Kh6 {[%emt 0:01:20]} 58. Qxa5 {[%emt 0:00:29]} b2 {[%emt 0:00:13]} 59. Bxb2 Bxb2 {[%emt 0:00:08]} 60. Qb4 {[%emt 0:00:35]} Qg7 {[%emt 0:01:28]} 61. Qxe4 {[%emt 0:00:05]} Qf6 {[%emt 0:00:41]} 62. Kg2 {[%emt 0:00:32]} Bc3 {[%emt 0:00:20]} 63. Kf1 {[%emt 0:01:01]} Qf3 {[%emt 0:00:38]} 64. Qe6 {[%emt 0:00:40]} Qh1+ {[%emt 0:00:58]} 65. Ke2 {[%emt 0:00:01]} Qe1+ {[%emt 0:00:10]} 66. Kd3 {[%emt 0:00:02]} Qd2+ {[%emt 0:00:20]} 67. Ke4 {[%emt 0:00:06]} Qc2+ {[%emt 0:00:22]} 1/2-1/2

[Event "XI Paracin Festival 2018"]
[Site "Paracin"]
[Date "2018.07.12"]
[Round "8"]
[White "Petrov, Georgi P"]
[Black "Arsovic, Zoran"]
[Result "0-1"]
[ECO "E67"]
[WhiteElo "2320"]
[BlackElo "2436"]
[Annotator "NA RC"]
[PlyCount "87"]
[EventDate "2018.07.06"]
[EventType "swiss"]
[EventCountry "SRB"]
[SourceTitle "playchess.com"]
[Source "ChessBase"]
[SourceQuality "1"]
[TimeControl "5400+30"]

1. Nf3 {[%emt 0:00:00]} Nf6 {[%emt 0:00:00]} 2. c4 {[%emt 0:00:00]} g6 {[%emt 0:00:18]} 3. g3 {[%emt 0:00:01]} Bg7 {[%emt 0:01:10]} 4. Bg2 {[%emt 0:00:05]} O-O {[%emt 0:00:18]} 5. O-O {[%emt 0:00:06]} d6 {[%emt 0:00:08]} 6. d4 {[%emt 0:00:12]} Nbd7 {[%emt 0:01:41]} 7. Nc3 {[%emt 0:01:05]} e5 {[%emt 0:00:28]} 8. h3 {[%emt 0:01:23]} exd4 {[%emt 0:01:31]} 9. Nxd4 {[%emt 0:00:27]} Re8 {[%emt 0:00:31]} 10. b3 {[%emt 0:01:15]} Nc5 {[%emt 0:03:01]} 11. Bb2 {[%emt 0:03:30]} c6 {[%emt 0:02:14]} 12. Qc2 {[%emt 0:04:43]} a5 {[%emt 0:04:00]} 13. Rad1 {[%emt 0:06:16]} Qb6 {[%emt 0:04:40]} 14. Rd2 {[%emt 0:06:02]} a4 {[%emt 0:01:37]} 15. Rfd1 {[%emt 0:01:10]} axb3 {[%emt 0:01:11]} 16. axb3 {[%emt 0:01:58]} h5 {[%emt 0:02:29]} 17. e3 {[%emt 0:02:14]} Nh7 {[%emt 0:05:42]} 18. Nb1 {[%emt 0:12:47]} Ng5 {[%emt 0:03:24]} 19. Kh2 {[%emt 0:00:14]} Nge4 {[%emt 0:10:38]} 20. Re2 {[%emt 0:00:07]} Ra2 {[%emt 0:01:29]} 21. Nc3 {[%emt 0:11:21]} Nxc3 {[%emt 0:00:43]} 22. Qxc3 {[%emt 0:00:05]} Nxb3 {[%emt 0:10:21]} 23. Qxb3 {[%emt 0:01:09]} Qxb3 {[%emt 0:00:09]} 24. Nxb3 {[%emt 0:00:04]} Rxb2 {[%emt 0:00:07]} 25. Rxb2 {[%emt 0:00:12]} Bxb2 {[%emt 0:00:07]} 26. Rxd6 {[%emt 0:00:10]} h4 {[%emt 0:00:30]} 27. Rd2 {[%emt 0:01:27]} hxg3+ {[%emt 0:02:04]} 28. Kxg3 {[%emt 0:00:31]} Bf6 {[%emt 0:02:02]} 29. Nc5 {[%emt 0:04:29]} Be7 {[%emt 0:07:30]} 30. Nb3 {[%emt 0:06:00]} Be6 {[%emt 0:00:39]} 31. Bf1 {[%emt 0:00:59]} Ra8 {[%emt 0:04:27]} 32. Nd4 {[%emt 0:01:02]} Bc8 {[%emt 0:00:13]} 33. Rb2 {[%emt 0:01:19]} Ra1 {[%emt 0:02:29]} 34. Be2 {[%emt 0:01:58]} Kf8 {[%emt 0:03:03]} 35. Kg2 {[%emt 0:01:14]} Ke8 {[%emt 0:00:46]} 36. Rd2 {[%emt 0:04:26]} Rc1 {[%emt 0:01:25]} 37. Ra2 {[%emt 0:05:51]} Kd8 {[%emt 0:04:35]} 38. Ra4 {[%emt 0:02:01]} Rc3 {[%emt 0:02:20]} 39. Bg4 {[%emt 0:03:58]} f5 {[%emt 0:00:54]} 40. Bd1 {[%emt 0:00:17]} Bf6 {[%emt 0:04:06]} 41. Ne2 {[%emt 0:01:48]} Rd3 {[%emt 0:00:37]} 42. Bc2 Rd1 43. Nd4 Rd3 44. Bxd3 0-1

[Event "XI Paracin Festival 2018"]
[Site "Paracin"]
[Date "2018.07.12"]
[Round "8"]
[White "Olcum, Ahmet"]
[Black "Abramovic, Bosko"]
[Result "0-1"]
[ECO "A43"]
[WhiteElo "2316"]
[BlackElo "2409"]
[Annotator "NA"]
[PlyCount "71"]
[EventDate "2018.07.06"]
[EventType "swiss"]
[EventCountry "SRB"]
[SourceTitle "playchess.com"]
[Source "ChessBase"]
[SourceQuality "1"]
[TimeControl "5400+30"]

1. d4 {[%emt 0:04:53]} c5 {[%emt 0:01:34]} 2. c3 {[%emt 0:03:22]} Qc7 {[%emt 0:00:39]} 3. Nf3 {[%emt 0:07:16]} g6 {[%emt 0:01:08]} 4. e4 {[%emt 0:04:54]} Bg7 {[%emt 0:00:18]} 5. Na3 {[%emt 0:03:23]} a6 {[%emt 0:01:24]} 6. dxc5 {[%emt 0:00:50]} Qxc5 {[%emt 0:00:43]} 7. Nc4 {[%emt 0:04:59]} Bh6 {[%emt 0:18:45]} 8. b4 {[%emt 0:02:12]} Qa7 {[%emt 0:03:15]} 9. Ng5 {[%emt 0:12:27]} b5 {[%emt 0:03:08]} 10. Be3 {[%emt 0:00:59]} Qb7 {[%emt 0:01:36]} 11. Na5 {[%emt 0:18:15]} Qc7 {[%emt 0:00:06]} 12. Qd5 {[%emt 0:13:09]} Bxg5 {[%emt 0:00:44]} 13. Bd4 {[%emt 0:05:34]} Bf6 14. Qxa8 {[%emt 0:10:02]} Bxd4 {[%emt 0:03:55]} 15. cxd4 {[%emt 0:00:12]} Qc3+ {[%emt 0:00:43]} 16. Ke2 {[%emt 0:00:01]} Qxa1 {[%emt 0:01:21]} 17. Qxb8 {[%emt 0:00:31]} Qc3 {[%emt 0:00:13]} 18. Qe5 {[%emt 0:04:31]} Nf6 {[%emt 0:00:17]} 19. Qc5 {[%emt 0:00:13]} Nxe4 {[%emt 0:00:55]} 20. Qxc3 {[%emt 0:00:33]} Nxc3+ {[%emt 0:00:11]} 21. Kd2 {[%emt 0:00:22]} Nxa2 {[%emt 0:04:46]} 22. Be2 {[%emt 0:00:15]} Nxb4 {[%emt 0:00:58]} 23. Bf3 {[%emt 0:00:53]} e6 {[%emt 0:00:37]} 24. Kc3 {[%emt 0:00:22]} Nc6 {[%emt 0:03:20]} 25. Nxc6 {[%emt 0:00:24]} dxc6 {[%emt 0:00:01]} 26. Kb4 {[%emt 0:00:11]} Kd7 {[%emt 0:00:40]} 27. Ka5 {[%emt 0:00:59]} Kc7 {[%emt 0:00:09]} 28. Rc1 {[%emt 0:01:03]} Bb7 {[%emt 0:01:52]} 29. d5 {[%emt 0:00:02]} exd5 {[%emt 0:00:15]} 30. Bxd5 {[%emt 0:00:02]} Rd8 {[%emt 0:03:05]} 31. Bxf7 {[%emt 0:00:10]} Rf8 {[%emt 0:00:22]} 32. Be6 {[%emt 0:00:32]} Rxf2 {[%emt 0:00:32]} 33. Rd1 {[%emt 0:00:05]} Bc8 {[%emt 0:00:28]} 34. Bxc8 {[%emt 0:00:02]} Kxc8 {[%emt 0:00:09]} 35. Kxa6 {[%emt 0:00:38]} Kc7 {[%emt 0:00:11]} 36. Rh1 0-1

[Event "XI Paracin Festival 2018"]
[Site "Paracin"]
[Date "2018.07.12"]
[Round "8"]
[White "Avalyan, Artur"]
[Black "Rahul Srivatshav P"]
[Result "1/2-1/2"]
[ECO "E73"]
[WhiteElo "2315"]
[BlackElo "2397"]
[Annotator "NA"]
[PlyCount "69"]
[EventDate "2018.07.06"]
[EventType "swiss"]
[EventCountry "SRB"]
[SourceTitle "playchess.com"]
[Source "ChessBase"]
[SourceQuality "1"]
[TimeControl "5400+30"]

1. d4 {[%emt 0:00:00]} Nf6 {[%emt 0:00:47]} 2. c4 {[%emt 0:00:00]} g6 {[%emt 0:01:09]} 3. Nc3 {[%emt 0:00:00]} Bg7 {[%emt 0:00:09]} 4. e4 {[%emt 0:00:00]} d6 {[%emt 0:00:06]} 5. Be2 {[%emt 0:00:05]} O-O {[%emt 0:00:06]} 6. Be3 {[%emt 0:00:06]} Nc6 {[%emt 0:00:04]} 7. d5 {[%emt 0:03:09]} Ne5 {[%emt 0:00:25]} 8. h3 {[%emt 0:00:22]} e6 {[%emt 0:00:02]} 9. Nf3 {[%emt 0:11:28]} Nxf3+ 10. Bxf3 {[%emt 0:00:44]} Nd7 {[%emt 0:00:39]} 11. Rc1 {[%emt 0:06:37]} f5 12. Qd2 {[%emt 0:11:23]} e5 {[%emt 0:26:22]} 13. Bg5 {[%emt 0:04:18]} Qe8 {[%emt 0:27:16]} 14. Nb5 {[%emt 0:14:55]} fxe4 {[%emt 0:01:40]} 15. Bxe4 {[%emt 0:01:20]} Qf7 {[%emt 0:03:16]} 16. O-O {[%emt 0:00:38]} Nc5 {[%emt 0:00:30]} 17. Bc2 {[%emt 0:08:22]} Bf5 {[%emt 0:05:16]} 18. Rce1 {[%emt 0:00:17]} a6 {[%emt 0:03:40]} 19. Nc3 {[%emt 0:02:53]} b5 {[%emt 0:00:11]} 20. b4 Nd7 21. Bb3 {[%emt 0:03:44]} bxc4 {[%emt 0:02:01]} 22. Bxc4 {[%emt 0:02:29]} a5 {[%emt 0:03:43]} 23. bxa5 {[%emt 0:08:53]} Nc5 {[%emt 0:01:29]} 24. g4 {[%emt 0:00:05]} Bd7 {[%emt 0:01:16]} 25. f4 {[%emt 0:03:15]} Qe8 {[%emt 0:00:42]} 26. fxe5 {[%emt 0:00:10]} Rxf1+ {[%emt 0:02:50]} 27. Bxf1 {[%emt 0:04:59]} dxe5 {[%emt 0:00:27]} 28. d6 {[%emt 0:00:24]} cxd6 {[%emt 0:00:13]} 29. Qxd6 {[%emt 0:00:57]} Ne6 {[%emt 0:00:48]} 30. Bc4 {[%emt 0:02:28]} Rc8 {[%emt 0:00:44]} 31. Bxe6+ {[%emt 0:01:49]} Qxe6 {[%emt 0:01:42]} 32. Ne4 {[%emt 0:00:42]} Qxd6 {[%emt 0:03:40]} 33. Nxd6 Rc6 {[%emt 0:01:34]} 34. Ne4 {[%emt 0:00:54]} Rc2 35. Nf6+ 1/2-1/2